bitfinex/quotes_ETHUSD_20250722
["timestamp","ask_amount","ask_price","bid_price","bid_amount"]
[1753172846229,2.8965475,3627.2,3627.1,0.25723856]
[1753172846636,0.1396,3627.2,3627.1,3.01426207]
[1753172846819,0.002,3627.2,3627.1,4.58632632]
[1753172847022,0.002,3627.2,3627.1,5.71162632]
[1753172847239,0.002,3627.2,3627.1,0.25723856]
[1753172847437,2.7589475,3627.2,3627.1,0.25723856]
[1753172847745,2.8965475,3627.2,3627.1,0.25723856]
[1753172848139,3.3344475,3627.2,3627.1,0.25723856]
[1753172848301,4.3197475,3627.2,3627.1,0.25723856]
[1753172848505,8.9897475,3627.2,3627.1,0.25723856]
[1753172848836,2.75709953,3627.0,3625.6,0.1376]
[1753172849036,20.7328,3627.2,3625.7,6.04759742]
[1753172849037,2.89508158,3626.5,3625.7,6.04759742]
[1753172849238,2.89508158,3626.5,3625.8,0.1376]
[1753172849239,2.8951051,3626.5,3625.8,0.1376]
[1753172849541,0.1376,3626.2,3625.7,4.675]
[1753172849714,0.1376,3626.2,3625.7,5.53728508]
[1753172850039,4.672,3627.1,3625.9,2.75787166]
[1753172850338,0.1376,3627.0,3626.9,2.75710541]
[1753172850636,0.002,3627.2,3627.0,2.75707874]
[1753172850800,0.002,3627.2,3627.1,2.78459374]
[1753172851005,0.002,3627.2,3627.1,3.24869374]
[1753172851319,0.002,3627.2,3627.1,4.55468099]
[1753172851524,0.002,3627.2,3627.1,4.52711076]
[1753172852351,0.002,3627.2,3626.9,4.67]
[1753172852642,0.1396,3627.2,3626.9,4.67]
[1753172853340,1.4232,3627.1,3626.1,4.669]
[1753172853540,0.1376,3626.7,3626.4,2.75750156]
[1753172853715,0.1376,3626.7,3626.1,5.42239]
[1753172853922,0.1376,3626.7,3626.4,2.75754752]
[1753172854132,0.1376,3626.7,3626.5,2.75745367]
[1753172854333,0.002,3627.2,3626.6,3.22144369]
[1753172854524,0.1376,3627.0,3626.7,0.02757327]
[1753172854925,0.1376,3627.0,3626.6,2.75740362]
[1753172855647,0.1376,3627.0,3626.5,7.42647162]
[1753172855941,0.1376,3627.0,3626.5,4.669]
[1753172856143,0.002,3627.2,3626.5,4.669]
[1753172856144,0.002,3627.2,3627.1,2.75702351]
[1753172856516,0.002,3627.2,3627.1,3.36112351]
[1753172857215,0.002,3627.2,3627.1,2.89462351]
[1753172858244,0.002,3627.2,3627.1,0.1376]
[1753172858547,0.002,3627.2,3627.1,3.36112351]
[1753172858738,0.002,3627.2,3626.5,2.75741504]
[1753172858739,2.75900256,3627.2,3626.5,2.75741504]
[1753172858926,2.89468838,3627.1,3626.5,0.1376]
[1753172859123,0.1376,3627.1,3626.5,0.1376]
[1753172859345,0.1376,3626.9,3626.3,0.1376]
[1753172859551,0.1376,3626.9,3626.4,2.75751094]
[1753172860050,0.1376,3626.9,3626.5,2.75742699]
[1753172860265,0.1376,3626.9,3626.6,0.02757403]
[1753172860744,0.1376,3626.9,3626.7,0.25793291]
[1753172860945,0.1376,3626.9,3626.8,0.25793291]
[1753172861147,2.89477554,3626.9,3626.8,0.25793291]
[1753172861522,0.1376,3626.9,3626.8,0.25793291]
[1753172862334,0.002,3627.2,3626.8,0.28550542]
[1753172862624,0.1396,3627.2,3626.9,0.25793291]
[1753172862825,0.1396,3627.2,3627.0,0.25793291]
[1753172863054,0.1396,3627.2,3627.1,0.25793291]
[1753172863257,0.002,3627.2,3627.1,0.25793291]
[1753172863460,0.002,3627.2,3627.1,3.01495642]
[1753172863666,0.002,3627.2,3627.1,0.25793291]
[1753172864165,0.002,3627.2,3627.1,3.48145642]
[1753172864458,0.002,3627.2,3627.1,0.25793291]
[1753172865457,0.002,3627.2,3627.1,3.01495642]
[1753172865837,0.002,3627.2,3627.1,0.25793291]
[1753172866231,2.7589475,3627.2,3627.1,0.25793291]
[1753172866431,2.7589475,3627.2,3626.8,0.1376]
[1753172866432,2.75702919,3627.1,3626.8,0.1376]
[1753172866628,2.75897056,3627.2,3626.9,0.25793588]
[1753172866829,0.002,3627.2,3627.0,0.25793588]
[1753172867028,0.002,3627.2,3627.1,0.25793588]
[1753172868078,0.002,3627.2,3625.3,6.615]
[1753172868079,2.75761482,3626.4,3625.5,1.0024]
[1753172868230,2.75761482,3626.4,3625.9,0.1376]
[1753172868431,2.75782911,3626.1,3625.9,0.1376]
[1753172868630,0.37668854,3627.9,3626.2,2.75770779]
[1753172868831,0.002,3628.5,3628.4,2.75603571]
[1753172869094,0.002,3628.5,3628.4,8.97959606]
[1753172869246,0.002,3628.5,3628.4,9.50203571]
[1753172870065,0.002,3628.5,3628.4,8.95203571]
[1753172870360,0.002,3628.5,3628.4,10.12285243]
[1753172870762,0.002,3628.5,3628.4,10.67285243]
[1753172872651,0.002,3628.6,3628.4,10.67278832]
[1753172872876,0.002,3628.6,3628.5,0.4665]
[1753172873076,0.002,3628.6,3628.5,0.67654018]
[1753172873268,0.002,3628.6,3628.5,1.70982918]
[1753172873591,0.002,3628.6,3628.5,6.52882918]
[1753172873888,0.002,3628.6,3628.5,9.28478894]
[1753172874076,0.002,3628.6,3628.5,10.88368894]
[1753172874987,0.002,3629.2,3629.1,2.75550411]
[1753172875194,0.002,3629.2,3629.1,8.86445452]
[1753172875487,0.002,3629.2,3629.1,9.33095452]
[1753172876887,0.002,3629.2,3629.1,9.88095452]
[1753172877771,0.002,3629.3,3629.2,3.30542819]
[1753172877984,0.002,3629.3,3629.2,3.77192819]
[1753172878168,0.002,3629.3,3629.2,5.31113206]
[1753172879022,0.002,3629.3,3629.2,4.92628634]
[1753172879309,0.002,3629.3,3629.2,5.44873206]
[1753172880099,1e-08,3629.3,3629.2,6.73877217]
[1753172881095,0.002,3630.1,3629.2,6.73877217]
[1753172881096,0.002,3630.1,3629.6,3.75352453]
[1753172881270,0.002,3630.1,3629.6,4.68798977]
[1753172881465,0.002,3630.1,3629.6,7.92676464]
[1753172881898,0.002,3630.1,3629.6,0.25604011]
[1753172882109,0.4563,3629.7,3629.6,0.25604011]
[1753172883113,3.21134862,3629.7,3629.6,0.25604011]
[1753172883409,0.4563,3629.7,3629.6,0.25604011]
[1753172883907,3.21134862,3629.7,3629.6,0.25604011]
[1753172884614,4.19584862,3629.7,3629.6,0.25604011]
[1753172886570,1.4408,3629.7,3629.6,0.25604011]
[1753172886811,0.9865,3629.7,3629.6,0.25604011]
[1753172887023,0.002,3629.7,3629.6,0.25604011]
[1753172887311,0.002,3629.7,3629.6,3.01116464]
[1753172887925,0.002,3629.7,3629.6,3.51206017]
[1753172888473,0.002,3629.7,3629.6,8.28961141]
[1753172888700,0.002,3629.7,3629.6,9.79906017]
[1753172889002,0.002,3630.1,3630.0,2.75482093]
[1753172889212,0.002,3630.1,3630.0,3.01086104]
[1753172889411,0.002,3630.1,3630.0,9.15008108]
[1753172889614,0.002,3630.1,3630.0,9.12253288]
[1753172890084,0.002,3630.1,3630.0,10.67073288]
[1753172890511,1e-08,3630.1,3630.0,10.67073288]
[1753172890970,0.9815,3632.6,3630.9,0.9982]
[1753172891176,3.18808095,3632.5,3631.8,2.75344042]
[1753172891485,3.1881079,3632.4,3631.9,0.25604011]
[1753172891682,0.4351,3632.4,3632.0,3.03685684]
[1753172891903,0.1376,3632.4,3632.1,0.25604011]
[1753172892111,0.1376,3632.4,3631.8,0.1376]
[1753172892112,3.18817656,3632.3,3632.2,0.25604011]
[1753172892309,0.4351,3632.3,3632.2,0.25604011]
[1753172892684,0.4351,3632.3,3631.4,4.735]
[1753172892888,2.75315368,3632.2,3631.5,3.14647859]
[1753172893095,0.4351,3632.3,3631.6,0.25521374]
[1753172893413,0.1376,3631.8,3631.7,0.25521374]
[1753172894197,0.5727,3632.1,3631.7,0.25521374]
[1753172894407,0.5727,3632.1,3631.9,2.75337977]
[1753172894611,0.1376,3632.3,3632.0,0.25521374]
[1753172894908,0.4351,3632.2,3632.1,0.25521374]
[1753172895074,4.17485235,3632.2,3632.1,0.25521374]
[1753172895274,1.4217,3632.2,3632.1,0.25521374]
[1753172895481,4.17485235,3632.2,3632.1,0.25521374]
[1753172896082,7.17485235,3632.2,3632.1,0.25521374]
[1753172896278,0.4351,3632.2,3632.1,0.25521374]
[1753172896597,3.18825235,3632.2,3632.1,0.25521374]
[1753172897386,4.17485235,3632.2,3632.1,0.25521374]
[1753172897585,1.4217,3632.2,3631.2,0.1376]
[1753172897786,0.1376,3631.9,3631.3,0.25524619]
[1753172898094,0.1376,3631.9,3631.4,0.25524619]
[1753172898298,0.1376,3631.9,3631.5,0.28278302]
[1753172898606,2.7535314,3631.7,3631.6,0.25524619]
[1753172898809,3.1886314,3631.7,3631.6,0.25524619]
[1753172899387,0.1376,3631.9,3631.6,0.25524619]
[1753172899588,2.89104342,3631.9,3631.7,0.25524619]
[1753172899902,2.89104342,3631.9,3631.8,0.25524619]
[1753172900101,3.32614342,3631.9,3631.8,0.25524619]
[1753172900522,0.5727,3631.9,3631.8,0.25524619]
[1753172900713,2.89097977,3631.9,3631.8,0.25524619]
[1753172900890,3.32607977,3631.9,3631.8,0.25524619]
[1753172902007,0.5727,3631.9,3631.8,0.25524619]
[1753172902209,0.1376,3631.9,3631.8,0.25524619]
[1753172902414,2.89097977,3631.9,3631.8,0.25524619]
[1753172903121,2.89097977,3631.9,3631.2,2.89149365]
[1753172903122,2.75345917,3631.8,3631.2,2.89149365]
[1753172903325,2.42311929,3631.8,3631.3,0.255823]
[1753172903625,0.5727,3631.9,3631.3,0.255823]
[1753172903626,2.8909962,3631.9,3631.4,1.341823]
[1753172903923,0.1376,3631.9,3631.5,0.255823]
[1753172904120,0.1376,3631.9,3631.6,0.255823]
[1753172904293,3.18857966,3631.8,3631.7,0.255823]
[1753172904715,0.4351,3631.8,3631.7,0.255823]
[1753172904995,0.1376,3631.9,3631.7,0.255823]
[1753172905299,0.002,3632.4,3631.8,0.255823]
[1753172905499,0.002,3632.4,3631.9,0.255823]
[1753172905700,0.002,3632.4,3632.0,0.393423]
[1753172905905,2.75501214,3632.4,3632.1,0.255823]
[1753172906116,3.18819437,3632.3,3632.2,0.255823]
[1753172906306,0.4351,3632.3,3632.2,0.255823]
[1753172906503,0.002,3632.4,3632.2,0.25614955]
[1753172906708,0.002,3632.4,3632.3,0.25614955]
[1753172907606,2.75500077,3632.4,3632.3,0.25614955]
[1753172907810,3.19010077,3632.4,3632.3,0.25614955]
[1753172908001,2.75500077,3632.4,3632.3,0.25614955]
[1753172908401,0.002,3632.4,3632.3,0.25614955]
[1753172908825,0.1396,3632.4,3632.3,0.25614955]
[1753172909229,0.002,3632.4,3632.3,0.25614955]
[1753172909924,0.002,3632.4,3632.3,3.32392332]
[1753172910102,0.002,3632.4,3632.3,4.98312332]
[1753172910307,0.002,3632.4,3632.3,1.76314676]
[1753172910506,0.002,3632.4,3632.3,0.39374955]
[1753172910705,3.19010077,3632.4,3632.3,0.25614955]
[1753172911239,7.17670077,3632.4,3632.3,0.25614955]
[1753172912097,4.17670077,3632.4,3632.3,0.25614955]
[1753172912597,2.75500077,3632.4,3632.3,0.25614955]
[1753172912939,0.1396,3632.4,3632.3,0.25614955]
[1753172913528,0.1396,3632.4,3632.3,0.39374955]
[1753172913529,0.002,3632.4,3632.3,0.39374955]
[1753172914035,0.002,3632.4,3632.3,3.14682611]
[1753172914237,0.1376,3633.1,3632.5,2.75288305]
[1753172914537,0.1376,3633.1,3632.6,0.25614955]
[1753172914538,4.673,3633.0,3632.6,0.25614955]
[1753172914742,0.1376,3633.1,3632.7,0.25614955]
[1753172914944,0.1376,3633.1,3632.0,1.0062]
[1753172914945,0.4351,3633.0,3632.8,0.25614955]
[1753172915265,3.0,3633.0,3632.9,0.25614955]
[1753172915399,3.1376,3633.1,3632.9,0.25645135]
[1753172915600,3.1376,3633.1,3633.0,0.25645135]
[1753172915835,8.2447,3633.1,3633.0,0.25645135]
[1753172916211,3.0,3633.1,3633.0,0.25645135]
[1753172916421,2.912,3633.1,3633.0,0.39405135]
[1753172916623,3.3737,3633.1,3633.0,0.39405135]
[1753172917145,6.12617034,3633.1,3633.0,0.25645135]
[1753172917725,7.584,3633.1,3633.0,0.25645135]
[1753172917954,7.586,3633.1,3633.0,0.25645135]
[1753172918236,8.0477,3633.1,3633.0,0.25645135]
[1753172918899,7.586,3633.1,3633.0,0.25645135]
[1753172919839,0.002,3633.1,3633.0,3.14659745]
[1753172920842,0.002,3633.1,3633.0,0.39405135]
[1753172921000,0.4637,3633.1,3633.0,0.25645135]
[1753172921427,0.002,3633.1,3633.0,0.25707131]
[1753172922358,6.21617034,3633.1,3633.0,0.25707131]
[1753172922914,7.16587034,3633.1,3633.0,0.25707131]
[1753172923623,11.83687034,3633.1,3633.0,0.25707131]
[1753172923943,11.97447034,3633.1,3633.0,0.25707131]
[1753172924351,7.30347034,3633.1,3633.0,0.25707131]
[1753172924518,9.222,3633.1,3633.0,0.25707131]
[1753172924916,0.1396,3633.1,3633.0,0.25707131]
[1753172925241,4.673,3633.1,3633.0,0.25707131]
[1753172926241,0.002,3633.1,3633.0,0.25707131]
[1753172926456,4.673,3633.1,3633.0,0.25707131]
[1753172926620,7.88717034,3633.1,3633.0,0.25707131]
[1753172927539,10.88717034,3633.1,3633.0,0.25707131]
[1753172927976,10.88717034,3633.1,3631.5,5.1447]
[1753172927977,3.1376,3633.0,3631.6,1.0014]
[1753172928262,3.0,3631.7,3631.3,1.0014]
[1753172928460,7.33967708,3631.6,3631.5,0.1376]
[1753172928618,10.0932843,3631.6,3631.5,0.1376]
[1753172928817,2.75363192,3631.6,3631.1,0.1376]
[1753172929182,3.1376,3631.8,3631.1,0.1376]
[1753172929183,3.0,3631.4,3631.1,0.6123]
[1753172929535,0.1376,3631.8,3631.1,1.05020562]
[1753172929734,3.0,3631.6,3631.3,2.89137062]
[1753172930034,4.67,3631.9,3631.7,0.1376]
[1753172930234,4.67,3631.9,3631.8,0.1376]
[1753172931174,4.67,3631.9,3630.9,0.4747]
[1753172931175,2.75360815,3631.6,3631.0,1.0228]
[1753172931373,0.1376,3631.8,3631.2,0.1376]
[1753172931531,7.42361331,3631.6,3631.2,0.1376]
[1753172931731,2.75368305,3631.5,3630.9,1.0596]
[1753172931958,5.2693,3631.6,3630.9,3.95133488]
[1753172932258,5.2693,3631.6,3630.9,1.1972]
[1753172932483,8.02290761,3631.6,3630.9,1.1972]
[1753172932669,2.75382928,3631.4,3630.9,1.1972]
[1753172932831,2.75370122,3631.5,3630.9,1.1972]
[1753172933142,3.0,3631.4,3630.9,1.1972]
[1753172933345,4.67,3631.3,3630.9,1.1972]
[1753172933532,4.67,3631.3,3630.9,3.95132296]
[1753172933929,4.67,3631.3,3630.9,1.1972]
[1753172934383,3.35296008,3631.6,3630.9,3.95133379]
[1753172934682,3.0,3631.4,3630.9,1.1972]
[1753172934843,4.67,3631.4,3630.9,1.1972]
[1753172935175,7.67,3631.4,3630.9,0.1376]
[1753172935389,7.669,3631.4,3630.9,0.1376]
[1753172935675,0.1376,3631.3,3630.8,2.75416198]
[1753172935840,0.1376,3631.3,3630.9,2.75407678]
[1753172936045,0.1376,3631.3,3631.0,0.4747]
[1753172936484,0.1376,3631.3,3631.0,3.22876123]
[1753172936641,0.1376,3631.3,3631.0,0.4747]
[1753172936849,7.669,3631.4,3630.8,0.02754213]
[1753172937044,3.0,3631.4,3630.9,0.1376]
[1753172937278,4.669,3631.3,3630.9,0.1376]
[1753172937443,2.75390219,3631.3,3630.9,0.1376]
[1753172937644,4.669,3631.3,3630.9,0.1376]
[1753172937988,3.21567707,3631.2,3630.4,1.0657]
[1753172938179,4.8066,3631.3,3630.7,0.1376]
[1753172938478,7.56044441,3631.3,3630.7,0.1376]
[1753172938697,7.56049278,3631.3,3630.7,0.1376]
[1753172939000,4.8066,3631.3,3630.7,2.89188783]
[1753172939290,4.8066,3631.3,3630.7,0.1376]
[1753172939583,4.669,3631.3,3631.0,0.001]
[1753172939786,4.669,3631.2,3631.0,0.001]
[1753172939943,0.1376,3631.5,3631.1,0.25686662]
[1753172940148,2.89128663,3631.5,3631.2,0.25686662]
[1753172940387,7.21647198,3631.4,3631.3,0.25686662]
[1753172940549,7.21647198,3631.4,3630.1,0.4757]
[1753172940550,2.75466916,3630.2,3630.1,0.001]
[1753172940749,2.75466916,3630.2,3628.0,2.901]
[1753172940750,5.75527635,3629.4,3628.0,0.4747]
[1753172940975,1.001,3629.4,3629.3,0.1386]
[1753172941162,11.42527635,3629.4,3629.3,0.001]
[1753172941492,4.4627,3629.4,3629.3,0.001]
[1753172941984,11.88697635,3629.4,3629.3,0.001]
[1753172942153,9.1317,3629.4,3629.3,0.001]
[1753172942348,11.88697635,3629.4,3629.3,0.001]
[1753172942549,0.1376,3629.5,3629.3,0.001]
[1753172942763,4.668,3629.4,3629.3,0.001]
[1753172943483,3.0,3629.8,3629.3,0.001]
[1753172943661,3.0,3629.6,3629.3,0.001]
[1753172943857,3.73810103,3629.9,3629.3,0.001]
[1753172944180,0.4617,3629.6,3629.3,0.001]
[1753172944600,0.9826,3630.3,3629.3,0.001]
[1753172944893,7.669,3630.2,3629.4,3.73746704]
[1753172945094,6.73719577,3630.3,3629.4,3.73746704]
[1753172945095,0.9826,3630.3,3629.5,2.75520044]
[1753172945296,3.9826,3630.3,3629.4,1.4569]
[1753172945496,7.668,3630.2,3629.7,2.75502602]
[1753172945792,4.668,3630.2,3629.8,2.75495116]
[1753172946030,4.668,3630.2,3629.6,2.75512385]
[1753172946031,1.0491,3631.2,3630.2,1.0254]
[1753172946310,1.5108,3631.6,3631.0,2.75399084]
[1753172946492,7.42268401,3631.5,3630.3,0.4747]
[1753172946696,2.75382018,3631.4,3630.3,0.4747]
[1753172946902,5.1066,3631.5,3630.8,2.75420919]
[1753172947215,5.1066,3631.5,3630.3,0.4747]
[1753172947216,3.0,3631.4,3630.7,2.75427126]
[1753172947519,3.0,3631.4,3630.3,0.4747]
[1753172947520,3.0,3631.4,3630.8,2.75419584]
[1753172947727,3.0,3631.4,3630.7,2.75426267]
[1753172947874,10.61034671,3631.3,3630.6,2.75434469]
[1753172948220,4.668,3631.2,3630.6,2.75434325]
[1753172948902,4.668,3631.2,3630.8,2.75420738]
[1753172949076,4.668,3631.2,3630.7,2.75426833]
[1753172949509,4.668,3631.2,3630.7,3.34768691]
[1753172949709,10.6103013,3631.3,3630.7,3.34768691]
[1753172950011,4.667,3631.2,3630.7,0.59341858]
[1753172950175,4.667,3631.2,3630.6,2.75436274]
[1753172950374,4.667,3631.1,3630.7,2.75427145]
[1753172950607,4.667,3631.1,3630.6,2.75433703]
[1753172950910,4.667,3631.1,3630.3,0.4247]
[1753172951111,7.8564483,3631.3,3630.8,2.75416347]
[1753172951313,5.1046,3631.2,3630.6,2.75434078]
[1753172951471,5.1046,3631.2,3630.7,2.75428101]
[1753172951675,5.1046,3631.2,3630.4,0.42047004]
[1753172951676,7.8564483,3631.3,3630.4,0.42047004]
[1753172951897,4.667,3631.2,3630.9,2.7541087]
[1753172952097,0.2112385,3631.6,3631.0,0.9715]
[1753172952405,4.302,3631.7,3631.4,2.75370329]
[1753172952728,4.666,3631.7,3631.1,2.75397703]
[1753172952894,4.666,3631.7,3631.1,2.75398639]
[1753172953312,4.666,3631.6,3631.2,2.75388523]
[1753172953617,4.666,3631.7,3631.5,0.1376]
[1753172954826,3.0,3632.0,3631.5,0.1376]
[1753172955030,2.75360722,3631.6,3631.5,0.1376]
[1753172955325,5.75370779,3631.5,3630.8,2.75420635]
[1753172955496,2.75376972,3631.4,3630.9,0.1376]
[1753172955690,2.75375888,3631.4,3630.9,0.1376]
[1753172955890,6.32890921,3631.5,3630.9,0.1376]
[1753172956532,3.5752,3631.5,3630.9,0.1376]
[1753172956716,4.665,3631.4,3630.9,2.89167725]
[1753172957044,4.664,3631.4,3631.0,0.4502]
[1753172957224,0.64133229,3632.0,3631.3,2.75383471]
[1753172957532,7.664,3631.9,3631.5,0.1376]
[1753172957738,3.20373229,3632.0,3631.6,2.75359351]
[1753172958050,4.664,3631.9,3631.5,2.75368305]
[1753172958234,4.664,3631.9,3631.7,0.1376]
[1753172958736,3.20373229,3632.0,3631.7,0.1376]
[1753172958932,7.664,3631.8,3631.7,0.1376]
[1753172959313,3.0,3631.8,3631.7,2.8911314]
[1753172959518,0.1376,3632.3,3631.9,2.75337977]
[1753172959827,3.0,3632.1,3632.0,0.25619463]
[1753172960022,4.663,3632.1,3632.0,0.25619463]
[1753172960225,7.663,3632.1,3632.0,0.25619463]
[1753172960423,10.85382816,3632.1,3632.0,0.25619463]
[1753172960625,8.1006,3632.1,3632.0,0.25619463]
[1753172960824,10.85382816,3632.1,3632.0,0.25619463]
[1753172961141,7.663,3632.1,3632.0,0.25619463]
[1753172961935,7.662,3632.1,3632.0,0.25619463]
[1753172962123,3.0,3632.1,3632.0,0.25619463]
[1753172962328,7.662,3632.1,3632.0,0.25619463]
[1753172962758,10.85282816,3632.1,3632.0,0.25619463]
[1753172963721,11.82672816,3632.1,3632.0,0.25619463]
[1753172964017,26.32572816,3632.1,3632.0,0.25619463]
[1753172964218,0.55,3631.8,3629.4,1.0666]
[1753172964439,0.55,3631.8,3629.4,0.001]
[1753172964440,3.0,3629.5,3629.4,0.001]
[1753172964753,4.661,3629.6,3629.4,0.001]
[1753172965052,4.66,3629.6,3629.4,0.001]
[1753172965654,10.61144438,3629.8,3629.4,0.001]
[1753172965820,0.20737098,3630.5,3629.4,0.001]
[1753172966020,4.66,3630.4,3629.7,2.75504553]
[1753172966359,4.66,3630.3,3629.8,3.18476007]
[1753172966719,4.66,3630.3,3629.8,3.18479797]
[1753172966924,4.66,3630.3,3629.8,0.42983975]
[1753172967252,7.41461513,3630.3,3629.6,3.82071431]
[1753172967457,7.85221513,3630.3,3629.6,3.82071431]
[1753172967629,2.75467532,3630.2,3629.6,3.8207029]
[1753172967958,10.61142267,3629.8,3629.4,0.001]
[1753172968158,4.66,3629.7,3629.4,0.001]
[1753172968458,4.659,3629.7,3629.4,0.82454229]
[1753172968653,4.659,3629.7,3629.4,3.20645473]
[1753172968854,4.659,3629.7,3629.4,0.001]
[1753172969422,3.0,3630.2,3629.4,0.001]
[1753172969644,3.0,3630.0,3629.5,2.75515172]
[1753172970049,3.0,3630.0,3629.4,3.20645163]
[1753172970221,10.41383665,3630.0,3629.4,2.75625163]
[1753172970419,7.659,3630.0,3629.4,2.75625163]
[1753172970662,7.659,3630.0,3629.5,0.027552]
[1753172970856,7.659,3630.0,3629.5,2.75520044]
[1753172971043,4.659,3630.0,3629.6,0.02755124]
[1753172971243,7.659,3630.0,3629.4,0.001]
[1753172971450,7.659,3630.0,3629.4,2.75624776]
[1753172971646,10.61104268,3630.3,3629.5,0.027552]
[1753172971647,7.8564483,3630.3,3629.5,0.027552]
[1753172971851,2.75438676,3630.6,3629.5,0.027552]
[1753172972030,4.658,3630.5,3629.6,1.4219]
[1753172972360,4.658,3630.5,3630.0,2.75481908]
[1753172972662,4.658,3630.5,3630.1,3.20494504]
[1753172972860,4.658,3630.5,3630.3,0.1376]
[1753172973652,3.0,3630.7,3630.3,0.1376]
[1753172973855,3.0,3630.5,3630.3,0.1376]
[1753172974054,3.0,3630.7,3630.3,0.1376]
[1753172974373,4.658,3630.6,3630.3,2.89218179]
[1753172974529,4.657,3630.6,3630.3,2.89218179]
[1753172974725,3.0,3630.7,3630.3,0.1376]
[1753172975148,4.657,3630.8,3630.4,0.9714]
[1753172975348,4.657,3630.8,3630.5,0.1376]
[1753172976232,7.8564483,3630.7,3630.5,0.1376]
[1753172976754,5.1061,3630.6,3630.5,0.1376]
[1753172977436,5.1061,3630.6,3630.0,2.75479034]
[1753172977748,5.1061,3630.6,3630.3,0.1376]
[1753172977942,4.656,3630.6,3630.3,0.1376]
[1753172978243,0.4501,3630.5,3630.3,0.1376]
[1753172978448,4.655,3630.4,3630.3,0.1376]
[1753172978870,5.1051,3630.4,3630.3,0.1376]
[1753172979069,8.1051,3630.4,3630.3,0.1376]
[1753172979365,7.655,3630.4,3630.3,0.1376]
[1753172979666,8.1051,3630.4,3630.3,0.1376]
[1753172980067,7.655,3630.4,3630.3,0.1376]
[1753172981255,10.4095174,3630.4,3630.3,0.1376]
[1753172981455,7.655,3630.4,3630.3,0.1376]
[1753172982131,3.4501,3630.4,3630.3,0.1376]
[1753172982332,10.8576174,3630.4,3630.3,0.1376]
[1753172982545,8.1031,3630.4,3630.3,0.39440208]
[1753172983270,10.8576174,3630.4,3630.3,0.39440208]
[1753172983447,8.1031,3630.4,3630.3,0.39440208]
[1753172983649,3.0,3630.4,3630.3,0.39440208]
[1753172983860,7.653,3630.4,3630.3,0.39440208]
[1753172984368,3.0,3630.4,3630.3,0.39540208]
[1753172984577,3.0,3630.3,3630.2,0.1376]
[1753172984876,3.0,3630.3,3629.5,1.0532]
[1753172984877,5.75504862,3629.7,3629.6,0.1376]
[1753172985054,14.67157283,3629.6,3629.5,0.001]
[1753172985256,15.25927283,3629.6,3629.5,0.001]
[1753172985434,19.91127283,3629.6,3629.5,0.001]
[1753172986540,15.25927283,3629.6,3629.5,0.001]
[1753172986739,19.91027283,3629.6,3629.5,0.001]
[1753172988678,29.75927283,3629.6,3629.5,0.001]
[1753172988876,34.41027283,3629.6,3629.5,0.001]
[1753172989237,34.41027283,3629.6,3629.4,0.001]
[1753172989446,5.75580786,3628.7,3628.6,0.001]
[1753172989642,3.0,3628.6,3627.7,1.0007]
[1753172989867,3.0,3628.4,3627.8,2.75643545]
[1753172990075,4.65,3628.3,3627.7,3.75723959]
[1753172990241,3.0,3628.6,3627.9,2.75735546]
[1753172990555,3.0,3628.6,3627.9,0.02856415]
[1753172990756,3.0,3628.6,3627.9,2.7849337]
[1753172990757,3.0,3628.4,3627.9,2.7849337]
[1753172990961,3.0,3628.4,3628.2,2.75612743]
[1753172991446,3.0,3628.4,3628.1,0.02756263]
[1753172991641,3.0,3628.4,3628.1,0.4501]
[1753172991857,3.0,3628.4,3628.0,2.7563368]
[1753172992059,4.649,3628.3,3627.9,0.001]
[1753172992662,4.649,3628.3,3627.9,2.7573798]
[1753172993186,4.649,3628.3,3627.9,3.45385374]
[1753172993385,4.649,3628.3,3627.9,3.90395374]
[1753172993586,4.649,3628.3,3628.0,2.75633572]
[1753172993751,3.0,3628.6,3628.1,2.75625917]
[1753172993956,4.648,3628.5,3628.0,2.75632209]
[1753172994176,4.648,3628.5,3627.9,0.001]
[1753172994363,3.0,3628.4,3627.9,0.001]
[1753172994566,4.648,3628.3,3627.9,0.001]
[1753172994781,10.61226567,3628.7,3627.9,0.001]
[1753172994782,7.8564483,3628.8,3627.9,0.40713868]
[1753172994978,7.648,3628.7,3628.1,2.75620722]
[1753172995690,8.8890483,3629.1,3628.2,0.02756187]
[1753172995992,4.647,3629.0,3628.8,2.75568321]
[1753172996180,6.61,3629.6,3628.9,0.4501]
[1753172996355,4.647,3629.5,3629.0,2.75552421]
[1753172996553,4.647,3629.4,3629.1,0.25643405]
[1753172996755,4.647,3629.4,3629.2,0.25643405]
[1753172996958,4.647,3629.4,3629.3,0.25643405]
[1753172998560,3.0,3629.7,3629.3,0.25643405]
[1753172998765,7.8564483,3630.1,3629.4,0.25643405]
[1753172998999,10.61119812,3630.1,3629.5,3.03917572]
[1753172999158,7.645,3630.0,3629.5,2.78274167]
[1753172999362,4.645,3629.9,3629.7,0.1376]
[1753172999562,4.645,3629.9,3629.8,0.25649787]
[1753172999769,3.0,3630.0,3629.8,0.25649787]
[1753172999992,3.0,3630.0,3629.7,0.1376]
[1753172999993,5.75482469,3630.0,3629.7,0.1376]
[1753173000212,7.8564483,3630.1,3629.8,0.25652722]
[1753173000418,7.8564483,3630.1,3629.3,1.4481]
[1753173000419,7.8564483,3630.1,3629.9,0.25652722]
[1753173000563,9.0407483,3630.6,3630.0,0.25654216]
[1753173000768,4.644,3630.5,3630.1,0.25654216]
[1753173000959,5.75459328,3630.3,3630.2,0.25654216]
[1753173001194,2.75490159,3629.9,3629.7,0.1376]
[1753173001395,4.644,3629.8,3629.7,0.1376]
[1753173001621,4.644,3629.8,3629.7,0.39415077]
[1753173001914,0.1376,3630.4,3629.7,0.39415077]
[1753173001915,5.75449237,3630.5,3629.7,3.59926842]